bitfinex-derivatives/quotes_SOLF0:USTF0_20241222
["timestamp","ask_amount","ask_price","bid_price","bid_amount"]
[1734852928472,2.7234,183.7,183.64,2.724]
[1734852929975,2.7234,183.7,183.65,2.724]
[1734852930676,2.723,183.72,183.67,2.7237]
[1734852930870,2.7,183.76,183.67,2.7]
[1734852931078,3.3795,183.82,183.67,2.7]
[1734852931277,0.97600353,183.81,183.67,2.7]
[1734852931479,17.09444969,183.82,183.69,14.39444969]
[1734852931676,2.7,183.82,183.69,14.39444969]
[1734852931978,17.09444969,183.82,183.7,2.7]
[1734852932176,14.39444969,183.79,183.67,2.7]
[1734852932373,2.7,183.78,183.67,2.7]
[1734852932573,14.39444969,183.79,183.67,2.7]
[1734852932776,2.7,183.78,183.67,2.7]
[1734852933575,2.7228,183.74,183.69,2.7234]
[1734852933875,2.7,183.78,183.67,2.7]
[1734852934270,3.3885,183.8,183.67,17.09444969]
[1734852934780,2.7224,183.77,183.72,2.723]
[1734852935782,2.7221,183.78,183.72,2.723]
[1734852936783,2.7219,183.8,183.71,2.7]
[1734852936982,2.7,183.83,183.71,5.9065]
[1734852937677,2.7,183.83,183.73,2.7228]
[1734852938981,2.7221,183.79,183.73,2.7228]
[1734852939177,2.7,183.83,183.73,2.7228]
[1734852939384,2.7,183.83,183.72,2.723]
[1734852940190,14.39444969,183.8,183.65,14.39444969]
[1734852940379,2.7,183.79,183.68,2.7]
[1734852940983,2.7227,183.75,183.69,2.7234]
[1734852941184,2.7,183.79,183.69,2.7234]
[1734852941682,2.7227,183.75,183.69,2.7234]
[1734852942085,2.7,183.79,183.69,2.7234]
[1734852942585,2.7,183.79,183.67,5.4236]
[1734852943086,2.7229,183.73,183.67,5.4236]
[1734852943284,2.7229,183.73,183.68,2.7235]
[1734852943883,2.7,183.79,183.67,2.7]
[1734852944188,2.7226,183.75,183.67,2.7]
[1734852944383,6.0487,183.82,183.68,14.39444969]
[1734852944585,2.7221,183.79,183.73,2.7228]
[1734852944986,2.7,183.81,183.73,2.7228]
[1734852945581,6.0487,183.82,183.73,2.7228]
[1734852945889,6.0487,183.82,183.74,2.7227]
[1734852946490,20.44314969,183.82,183.72,2.7]
[1734852946880,2.7223,183.77,183.72,2.7]
[1734852947393,2.722,183.79,183.74,2.7227]
[1734852948293,2.7221,183.78,183.74,2.7227]
[1734852948591,2.7,183.81,183.72,2.7]
[1734852948895,2.7,183.81,183.72,5.423]
[1734852949492,2.7224,183.77,183.72,5.423]
[1734852949696,2.7224,183.77,183.73,2.7228]
[1734852949899,2.7224,183.77,183.72,2.7]
[1734852950199,2.722,183.79,183.72,5.423]
[1734852950393,2.7,183.81,183.72,5.423]
[1734852951994,2.7,183.81,183.72,2.7]
[1734852952392,2.7,183.81,183.7,2.7232]
[1734852952591,2.7225,183.76,183.7,2.7232]
[1734852952787,2.7225,183.76,183.69,2.7]
[1734852952994,2.7225,183.76,183.71,2.7231]
[1734852954099,2.7,183.77,183.67,8.96385096]
[1734852954297,2.7,183.76,183.66,2.7]
[1734852954799,2.7228,183.73,183.67,2.7236]
[1734852955599,2.7234,183.7,183.65,3.3515]
[1734852955800,8.96385096,183.74,183.65,3.3515]
[1734852955994,2.7,183.72,183.65,3.3515]
[1734852956303,2.7235,183.69,183.65,3.3515]
[1734852956500,2.7,183.77,183.65,3.3515]
[1734852958501,2.7,183.77,183.67,2.7237]
[1734852958896,2.7227,183.74,183.67,2.7237]
[1734852959204,2.7,183.77,183.67,2.7237]
[1734852960502,2.7229,183.73,183.68,2.7235]
[1734852961400,2.723,183.72,183.67,2.7237]
[1734852965404,14.35169809,183.77,183.66,2.7]
[1734852965709,2.7,183.76,183.65,6.0755]
[1734852966310,2.7234,183.7,183.65,6.0755]
[1734852966803,2.7236,183.68,183.65,3.3515]
[1734852967700,2.7235,183.69,183.65,3.3515]
[1734852970904,2.7235,183.69,183.65,6.0754]
[1734852971310,2.7236,183.68,183.64,4.443]
[1734852972610,2.7,183.74,183.64,1.7189]
[1734852974514,2.7236,183.69,183.65,2.724]
[1734852974715,2.7,183.74,183.64,1.7189]
[1734852974915,14.35169809,183.78,183.64,1.7189]
[1734852975115,2.7,183.77,183.64,1.7189]
[1734852975313,2.7226,183.75,183.7,2.7232]
[1734852978512,2.7228,183.74,183.68,2.7]
[1734852978709,2.7,183.77,183.68,2.7]
[1734852979117,2.7227,183.75,183.7,2.7232]
[1734852979315,2.7,183.77,183.7,2.7232]
[1734852980522,2.7226,183.75,183.7,2.7232]
[1734852984321,11.66516096,183.78,183.7,2.7232]
[1734852984518,2.7227,183.74,183.7,2.7232]
[1734852984917,11.66516096,183.78,183.67,3.2207]
[1734852985119,2.7232,183.71,183.67,3.2207]
[1734852985320,2.7,183.74,183.64,1.7189]
[1734852985520,2.7,183.74,183.65,2.724]
[1734852985714,2.7234,183.7,183.65,2.724]
[1734852986320,8.96516096,183.72,183.64,4.443]
[1734852986514,8.96516096,183.72,183.64,1.7189]
[1734852987324,2.7,183.72,183.64,1.7189]
[1734852987824,2.7,183.72,183.65,2.724]
[1734852988321,2.7235,183.69,183.64,4.443]
[1734852989426,2.7235,183.69,183.65,2.724]
[1734852989921,2.7235,183.69,183.64,4.443]
[1734852990417,8.96516096,183.75,183.64,1.7189]
[1734852990618,11.66516096,183.75,183.67,2.7236]
[1734852991423,2.723,183.72,183.67,2.7236]
[1734852993430,2.7234,183.69,183.64,1.7189]
[1734852994427,2.7234,183.69,183.64,4.443]
[1734852996028,2.7,183.71,183.64,1.7189]
[1734852996227,2.7237,183.67,183.64,1.7189]
[1734852997028,2.7239,183.66,183.63,3.2842]
[1734852997324,2.7239,183.66,183.63,1.6232]
[1734852999224,2.7,183.71,183.63,1.6232]
[1734852999426,2.7238,183.67,183.63,1.6232]
[1734853003427,2.7238,183.67,183.62,14.38956096]
[1734853004531,2.7,183.71,183.62,14.38956096]
[1734853004724,2.724,183.66,183.62,14.38956096]
[1734853005235,2.7237,183.67,183.63,2.7243]
[1734853006333,2.724,183.65,183.62,8.96516096]
[1734853006532,2.7,183.71,183.62,8.96516096]
[1734853006928,2.7237,183.68,183.63,2.7243]
[1734853007130,2.7,183.71,183.63,2.7243]
[1734853008425,2.7238,183.67,183.63,2.7243]
[1734853009233,2.7238,183.67,183.62,8.96516096]
[1734853009433,2.7238,183.67,183.62,11.68956096]
[1734853009635,2.7239,183.66,183.62,11.68956096]
[1734853009933,2.7,183.71,183.62,11.68956096]
[1734853010630,2.7239,183.66,183.62,11.68956096]
[1734853016637,1.6183,183.74,183.62,8.96516096]
[1734853016935,2.7,183.73,183.62,8.96516096]
[1734853018233,2.7233,183.7,183.65,2.724]
[1734853019531,10.58346096,183.74,183.66,2.7238]
[1734853019839,2.7,183.73,183.65,8.96516096]
[1734853020435,2.7,183.73,183.68,2.7236]
[1734853020836,2.7,183.73,183.65,8.96516096]
[1734853021139,2.7,183.73,183.64,2.7]
[1734853022338,2.7233,183.7,183.64,2.7]
[1734853022533,2.7,183.73,183.64,2.7]
[1734853022731,2.7,183.73,183.62,68.34942613]
[1734853022937,2.7236,183.69,183.64,2.724]
[1734853023138,2.7236,183.69,183.63,2.7]
[1734853024542,2.7236,183.69,183.65,2.724]
[1734853025035,2.7234,183.69,183.66,2.7238]
[1734853025237,2.7234,183.69,183.63,2.7]
[1734853025837,2.7234,183.69,183.65,2.724]
[1734853026440,11.66516096,183.74,183.65,2.724]
[1734853026641,2.7236,183.68,183.65,2.724]
[1734853027137,2.7239,183.66,183.63,2.7243]
[1734853027338,2.7239,183.66,183.59,61.01366517]
[1734853027339,8.96516096,183.67,183.59,59.38426517]
[1734853027539,8.96516096,183.64,183.59,59.38426517]
[1734853027741,2.7246,183.61,183.59,59.38426517]
[1734853028145,2.7246,183.61,183.57,59.38426517]
[1734853029544,2.7246,183.61,183.56,2.7253]
[1734853030647,8.96516096,183.64,183.56,2.7253]
[1734853032457,2.7247,183.61,183.56,2.7253]
[1734853033952,8.96516096,183.64,183.54,2.7]
[1734853034252,2.7248,183.6,183.55,2.7255]
[1734853034755,2.7,183.62,183.53,4.9197]
[1734853035057,2.7252,183.57,183.52,2.7259]
[1734853035256,2.7,183.58,183.49,71.04942613]
[1734853035459,11.66516096,183.58,183.49,62.11066517]
[1734853035854,2.7256,183.55,183.49,62.11066517]
[1734853036251,11.66516096,183.58,183.49,62.11066517]
[1734853036458,11.66516096,183.58,183.49,2.7264]
[1734853036664,2.7255,183.56,183.49,2.7264]
[1734853036863,11.66516096,183.58,183.49,2.7264]
[1734853037160,2.7256,183.55,183.49,2.7264]
[1734853039262,11.66516096,183.58,183.49,2.7264]
[1734853039458,2.7257,183.54,183.49,2.7264]
[1734853043260,2.7,183.55,183.48,3.1662]
[1734853043460,2.7,183.55,183.46,8.96516096]
[1734853043661,2.726,183.52,183.47,2.7266]
[1734853044567,2.7,183.55,183.47,2.7266]
[1734853044869,2.7261,183.51,183.46,11.69196096]
[1734853045361,2.727,183.46,183.4,8.96516096]
[1734853045665,2.7,183.47,183.43,2.7273]
[1734853045963,2.7,183.47,183.39,59.38426517]
[1734853046170,2.7,183.47,183.36,8.96516096]
[1734853046669,2.7,183.47,183.37,2.728]
[1734853046968,2.7276,183.42,183.36,8.96516096]
[1734853047168,2.7,183.42,183.35,2.7283]
[1734853047965,2.7277,183.41,183.35,2.7283]
[1734853049170,2.7277,183.41,183.34,12.31636096]
[1734853049470,2.7277,183.41,183.36,2.7283]
[1734853050371,2.7,183.42,183.34,12.31636096]
[1734853050572,2.7278,183.4,183.35,2.7284]
[1734853050866,2.7,183.42,183.34,12.31636096]
[1734853051073,2.7,183.43,183.38,2.728]
[1734853051273,2.7,183.43,183.34,12.31636096]
[1734853052271,2.7276,183.41,183.34,3.3512]
[1734853052572,2.7,183.43,183.34,12.31636096]
[1734853052773,11.66516096,183.43,183.3,8.96516096]
[1734853052974,11.66516096,183.43,183.31,2.7291]
[1734853052975,2.7285,183.35,183.31,2.7291]
[1734853053875,2.7285,183.35,183.3,8.96516096]
[1734853054075,2.7285,183.35,183.3,11.69436096]
[1734853054377,2.7283,183.36,183.29,8.96516096]
[1734853054871,2.7283,183.36,183.31,2.7291]
[1734853055575,2.7,183.37,183.31,2.7291]
[1734853055576,2.7285,183.35,183.31,2.7291]
[1734853056073,2.7285,183.35,183.3,2.7292]
[1734853057179,2.7,183.37,183.15,142.20928861]
[1734853057368,8.96516096,183.39,183.24,8.96516096]
[1734853057571,2.7,183.38,183.25,4.9455]
[1734853057865,2.7,183.38,183.28,2.7295]
[1734853058066,2.7,183.38,183.25,4.9455]
[1734853058067,13.96016096,183.42,183.3,8.96516096]
[1734853058272,2.7,183.41,183.3,8.96516096]
[1734853058878,2.7283,183.36,183.31,2.7291]
[1734853060378,2.7283,183.36,183.32,2.7289]
[1734853062981,2.7282,183.37,183.32,2.7289]
[1734853063183,2.7,183.39,183.34,2.7286]
[1734853063481,2.7,183.39,183.29,11.66516096]
[1734853063680,2.7282,183.37,183.32,2.7289]
[1734853063979,2.7282,183.37,183.29,11.66516096]
[1734853064180,2.7,183.39,183.29,11.66516096]
[1734853064379,2.7284,183.36,183.31,2.7291]
[1734853064675,4.995,183.42,183.26,8.96516096]
[1734853064878,2.7,183.41,183.29,8.96516096]
[1734853065079,2.7,183.41,183.3,2.7]
[1734853066072,2.728,183.38,183.33,2.7286]
[1734853066381,2.7,183.37,183.27,1.5808]
[1734853066583,2.7,183.36,183.27,4.2808]
[1734853067382,2.7285,183.35,183.27,4.2808]
[1734853069182,2.7285,183.35,183.3,2.7291]
[1734853070184,2.7285,183.35,183.27,4.2808]
[1734853070383,2.7285,183.35,183.31,2.729]
[1734853071879,2.7,183.36,183.3,2.7292]
[1734853072073,2.7,183.36,183.26,14.95826096]
[1734853072282,11.66516096,183.36,183.26,14.95826096]
[1734853073381,2.7287,183.34,183.29,2.7294]
[1734853074186,2.729,183.32,183.27,2.7295]
[1734853074382,11.66516096,183.36,183.26,3.2931]
[1734853075286,2.7288,183.34,183.29,2.7293]
[1734853075586,11.66516096,183.36,183.29,2.7293]
[1734853075787,2.7286,183.34,183.29,2.7293]
[1734853080184,11.66516096,183.36,183.29,2.7293]
[1734853080383,2.7288,183.33,183.29,2.7293]
[1734853081086,8.96516096,183.3,183.23,59.38426517]
[1734853081387,2.7,183.29,183.23,59.38426517]
[1734853081582,8.96516096,183.27,183.23,59.38426517]
[1734853082086,2.7301,183.24,183.23,59.38426517]
[1734853082285,2.7301,183.24,183.21,59.38426517]
[1734853082485,2.7,183.25,183.21,59.38426517]
[1734853082781,5.43,183.25,183.21,59.38426517]
[1734853082978,2.7,183.25,183.21,59.38426517]
[1734853083390,2.7,183.25,183.2,2.7307]
[1734853083585,2.7,183.25,183.18,3.3972]
[1734853084585,2.7,183.25,183.21,2.7305]
[1734853084987,5.4301,183.25,183.19,2.7307]
[1734853085180,5.4301,183.25,183.17,61.02296517]
[1734853085181,2.7,183.25,183.17,59.38426517]
[1734853085984,8.96516096,183.24,183.17,59.38426517]
[1734853086187,8.96516096,183.24,183.15,59.38426517]
[1734853086892,2.7309,183.2,183.15,59.38426517]
[1734853087190,8.96516096,183.24,183.15,59.38426517]
[1734853087393,2.7,183.23,183.12,16.67626096]
[1734853087590,2.7305,183.22,183.12,16.67626096]
[1734853088186,2.7,183.23,183.12,16.67626096]
[1734853088483,2.7306,183.21,183.12,16.67626096]
[1734853088987,2.7306,183.21,183.15,2.7313]
[1734853089387,2.7,183.23,183.15,2.7313]
[1734853089588,2.7307,183.2,183.15,2.7313]
[1734853089784,2.7,183.23,183.14,2.7316]
[1734853091694,2.7308,183.2,183.14,2.7316]
[1734853091989,2.7,183.19,183.14,2.7316]
[1734853094200,5.4309,183.19,183.14,2.7316]
[1734853094898,2.7304,183.22,183.17,2.7311]
[1734853095198,5.4304,183.22,183.15,8.96516096]
[1734853095590,2.7304,183.22,183.15,8.96516096]
[1734853095796,2.7304,183.22,183.17,2.7311]
[1734853096395,2.73,183.25,183.15,8.96516096]
[1734853096693,5.43,183.25,183.15,8.96516096]
[1734853097093,5.43,183.25,183.2,2.7306]
[1734853097489,2.73,183.25,183.2,2.7306]
[1734853097700,5.43,183.25,183.2,2.7306]
[1734853098799,112.03659774,183.27,183.18,8.96516096]
[1734853099000,5.74989801,183.32,183.21,8.96516096]
[1734853099202,3.04989801,183.32,183.22,2.7]
[1734853099502,5.77889801,183.32,183.22,2.7]
[1734853100104,5.77889801,183.32,183.25,2.73]
[1734853100404,2.7291,183.31,183.22,2.7]
[1734853101499,3.04989801,183.32,183.24,8.96516096]
[1734853101701,2.7,183.34,183.24,8.96516096]
[1734853101996,2.7,183.34,183.29,2.7294]
[1734853102201,5.4287,183.34,183.29,2.7294]
[1734853102903,2.7288,183.33,183.29,2.7294]
[1734853103105,2.7288,183.33,183.28,2.7295]
[1734853107997,2.7,183.35,183.19,5.145]
[1734853108201,2.7293,183.3,183.25,2.7299]
[1734853109404,8.96516096,183.3,183.19,3.4781]
[1734853109608,2.73,183.25,183.19,3.4781]
[1734853110608,8.96516096,183.3,183.2,2.7]
[1734853110903,2.7,183.29,183.2,2.7]
[1734853111107,2.7291,183.31,183.22,8.96516096]
[1734853111310,2.7291,183.31,183.23,1.6755]
[1734853111508,2.7291,183.31,183.24,2.7]
[1734853112114,2.7289,183.32,183.27,2.7296]
[1734853113215,5.4288,183.33,183.25,8.96516096]
[1734853113510,2.7,183.34,183.26,3.4313]
[1734853113814,2.7,183.34,183.31,2.7291]
[1734853114310,2.7,183.38,183.33,2.7288]
[1734853115408,5.4281,183.38,183.33,2.7288]
[1734853115907,14.04996096,183.42,183.28,11.66516096]
[1734853116111,8.96516096,183.45,183.34,8.96516096]
[1734853116409,2.7,183.44,183.35,1.6034]
[1734853116607,2.7,183.44,183.4,2.7277]
[1734853117713,2.727,183.45,183.4,2.7277]
[1734853118015,2.7,183.46,183.4,2.7277]
[1734853118212,2.7,183.47,183.38,2.7]
[1734853118513,2.7,183.49,183.38,17.08977072]
[1734853119911,2.7,183.49,183.36,2.7]
[1734853120112,14.38977072,183.48,183.36,2.7]
[1734853120414,14.38977072,183.48,183.35,5.0078]
[1734853120415,17.72647072,183.48,183.35,5.0078]
[1734853120812,14.38977072,183.45,183.33,2.7]
[1734853121018,2.7,183.44,183.33,2.7]
[1734853121212,2.7281,183.38,183.32,2.7289]
[1734853122319,2.7279,183.39,183.33,2.7287]
[1734853122815,2.7,183.4,183.3,3.2774]
[1734853123016,2.7282,183.37,183.32,2.7289]
[1734853124113,2.7282,183.37,183.3,3.2774]
[1734853124313,2.7282,183.37,183.31,2.7291]
[1734853124514,2.7282,183.37,183.3,3.2774]
[1734853125419,2.7282,183.37,183.32,2.7289]
[1734853126215,2.7,183.36,183.32,2.7289]
[1734853126422,2.7,183.36,183.29,2.7294]
[1734853126621,2.7,183.36,183.25,1.7049]
[1734853126823,2.7291,183.31,183.25,4.4349]
[1734853127119,2.7291,183.31,183.25,1.7049]
[1734853127621,2.7289,183.33,183.27,2.7296]
[1734853129121,2.7,183.36,183.26,2.7298]
[1734853129122,2.729,183.32,183.26,2.7298]
[1734853130926,2.7288,183.33,183.27,2.7296]
[1734853132526,2.729,183.32,183.27,2.7296]
[1734853137025,2.7291,183.31,183.26,2.7298]
[1734853137825,2.7291,183.31,183.25,1.7049]
[1734853138022,2.7291,183.31,183.27,2.7297]
[1734853140426,5.4289,183.32,183.27,2.7297]
[1734853141128,5.4289,183.32,183.25,1.7049]
[1734853141129,2.7,183.32,183.25,1.7049]
[1734853141433,2.7,183.32,183.23,2.7]
[1734853141735,2.7298,183.27,183.22,2.7304]
[1734853141938,2.7,183.28,183.22,2.7304]
[1734853142741,2.7,183.31,183.22,9.01052463]
[1734853143126,2.7,183.31,183.23,2.7]
[1734853143537,2.7,183.31,183.25,2.7299]
[1734853144535,2.7294,183.29,183.25,2.7299]
[1734853145640,2.7297,183.27,183.22,2.7303]
[1734853145841,2.7,183.31,183.2,1.611]
[1734853146143,2.7297,183.28,183.2,2.7306]
[1734853146343,2.7,183.27,183.2,2.7306]
[1734853146737,2.73,183.25,183.2,2.7306]
[1734853146937,2.73,183.25,183.21,2.7305]
[1734853147136,2.7,183.27,183.18,2.7]
[1734853147649,2.7,183.27,183.23,2.7301]
[1734853147946,2.7299,183.26,183.18,2.7]
[1734853148146,2.7,183.27,183.21,2.7304]
[1734853148848,2.7301,183.24,183.19,2.7307]
[1734853150443,2.7,183.27,183.18,2.7]
[1734853150648,2.73,183.25,183.18,2.7]
[1734853151045,9.01052463,183.32,183.18,2.7]
[1734853151252,2.7,183.31,183.21,9.01052463]
[1734853151453,2.7,183.31,183.18,11.71052463]
[1734853151652,2.7298,183.27,183.22,2.7304]
[1734853152446,2.7,183.31,183.18,11.71052463]
[1734853153048,2.7294,183.29,183.25,2.7298]
[1734853153250,2.7,183.31,183.22,2.7]
[1734853153455,1.7068,183.35,183.22,4.3721]
[1734853153750,4.4068,183.35,183.23,3.3595]
[1734853154454,2.729,183.32,183.28,2.7295]
[1734853154645,2.7,183.35,183.23,3.3595]
[1734853154851,1.6136,183.41,183.24,9.01052463]
[1734853155050,9.01052463,183.37,183.24,9.01052463]
[1734853156356,2.7288,183.33,183.27,2.7295]
[1734853156755,2.7288,183.33,183.28,2.7295]
[1734853157760,5.4284,183.36,183.31,2.729]
[1734853157958,2.7284,183.36,183.31,2.729]
[1734853158259,9.01052463,183.37,183.31,2.729]
[1734853159060,2.7288,183.33,183.26,2.7]
[1734853159267,2.7288,183.33,183.24,11.71052463]
[1734853159759,2.7288,183.33,183.27,2.7295]
[1734853160157,11.71052463,183.34,183.27,2.7295]
[1734853160357,2.7291,183.31,183.27,2.7295]
[1734853161964,2.7289,183.32,183.27,2.7295]
[1734853167170,2.7291,183.31,183.27,2.7295]
[1734853167363,11.71052463,183.34,183.26,2.7298]
[1734853167568,11.71052463,183.34,183.23,1.6968]
[1734853167770,2.7297,183.28,183.23,1.6968]
[1734853168070,2.7297,183.28,183.23,4.427]
[1734853169573,2.7291,183.31,183.25,2.73]
[1734853169872,11.71052463,183.34,183.23,1.6968]
[1734853170470,2.7293,183.3,183.26,2.7298]
[1734853171368,11.71052463,183.34,183.25,2.7]
[1734853172576,2.7296,183.28,183.25,2.7]
[1734853172868,2.7296,183.28,183.24,2.7301]
[1734853176074,2.7297,183.27,183.23,1.6968]
[1734853176274,9.01052463,183.31,183.22,1.6721]
[1734853176474,2.7,183.3,183.22,1.6721]
[1734853177169,2.7299,183.26,183.22,1.6721]
[1734853178882,2.73,183.25,183.21,2.7305]
[1734853182787,2.7,183.3,183.21,2.7305]
[1734853183383,2.7296,183.28,183.21,2.7305]
[1734853183583,2.7,183.3,183.21,2.7305]
[1734853183984,2.7299,183.26,183.21,2.7305]
[1734853184183,2.7,183.3,183.2,2.7]
[1734853184384,2.7307,183.21,183.17,4.3689]
[1734853184582,2.7,183.24,183.17,1.6689]
[1734853185190,2.7306,183.21,183.17,1.6689]
[1734853185384,2.7,183.24,183.17,1.6689]
[1734853185590,2.7,183.24,183.14,2.7]
[1734853185781,2.7309,183.19,183.14,2.7]
[1734853185988,2.7,183.24,183.15,2.7314]
[1734853186183,2.7,183.24,183.14,2.7]
[1734853187489,2.7307,183.21,183.14,2.7]
[1734853188991,2.7305,183.22,183.17,2.7312]
[1734853191096,2.7,183.24,183.14,2.7]
[1734853191297,2.7307,183.21,183.16,2.7313]
[1734853192490,2.7,183.24,183.13,5.0956]
[1734853192687,2.7,183.24,183.14,2.7]
[1734853193700,2.7306,183.21,183.16,2.7312]
[1734853193896,2.7306,183.21,183.14,2.7]
[1734853194698,2.7306,183.21,183.17,2.7311]
[1734853195697,3.2996,183.3,183.14,2.7]
[1734853196001,1.6609,183.33,183.2,9.01052463]
[1734853196300,2.7291,183.31,183.21,7.8919]
[1734853196703,9.01052463,183.34,183.23,9.01052463]
[1734853196903,9.01052463,183.34,183.28,2.7295]
[1734853197300,9.01052463,183.34,183.26,2.7]
[1734853198897,2.7289,183.32,183.27,2.7296]
[1734853199100,2.7,183.36,183.26,2.7]
[1734853199302,2.7,183.36,183.27,2.7]
[1734853199497,2.7288,183.33,183.29,2.7293]
[1734853199697,2.7,183.36,183.29,2.7293]
[1734853199895,2.7,183.36,183.27,2.7]
[1734853201402,2.7289,183.33,183.28,2.7295]
[1734853202605,2.7289,183.33,183.27,2.7]
[1734853202606,9.01052463,183.37,183.27,2.7]
[1734853203107,2.7285,183.35,183.3,2.7292]
[1734853204205,2.7286,183.34,183.29,2.7294]
[1734853204407,9.01052463,183.37,183.29,2.7294]
[1734853205207,9.01052463,183.37,183.3,2.7292]
[1734853205506,9.01052463,183.37,183.27,2.7]
[1734853205707,3.21475865,183.39,183.35,2.7285]
[1734853206109,5.94265865,183.39,183.34,2.7]
[1734853206309,3.21475865,183.39,183.34,2.7]
[1734853206908,9.01052463,183.35,183.18,156.379062]
[1734853207114,9.01052463,183.27,183.23,59.38426517]
[1734853207314,2.96,183.26,183.23,59.38426517]
[1734853207511,2.7301,183.24,183.23,59.38426517]
[1734853208312,2.7299,183.26,183.23,59.38426517]
[1734853208509,2.96,183.25,183.23,59.38426517]
[1734853208712,2.96,183.25,183.11,1.7005]
[1734853209507,2.7297,183.27,183.21,2.7304]
[1734853209711,2.96,183.28,183.19,9.01052463]
[1734853209910,2.96,183.28,183.19,11.97052463]
[1734853210111,2.96,183.28,183.2,1.7436]
[1734853210512,2.96,183.28,183.21,1.6358]
[1734853210914,5.6895,183.28,183.22,2.7303]
[1734853211309,5.6895,183.28,183.21,1.6358]
[1734853211508,2.96,183.28,183.21,1.6358]
[1734853212016,2.96,183.28,183.24,2.7301]
[1734853212318,2.96,183.28,183.21,1.6358]
[1734853213814,2.7297,183.27,183.22,2.7304]
[1734853214511,5.6895,183.28,183.23,2.7302]
[1734853214917,2.96,183.28,183.23,2.7302]
[1734853215216,2.96,183.28,183.24,2.73]
[1734853219818,5.6892,183.31,183.21,1.6358]
[1734853220310,5.6892,183.31,183.25,2.7298]
[1734853220918,5.6892,183.31,183.26,2.7298]
[1734853221922,9.01052463,183.33,183.23,2.96]
[1734853222310,9.01052463,183.33,183.29,2.7292]
[1734853222511,9.01052463,183.33,183.23,2.96]
[1734853222718,9.01052463,183.36,183.23,11.97052463]
[1734853222913,9.01052463,183.36,183.26,9.01052463]
[1734853223110,9.01052463,183.36,183.27,4.5939]
[1734853223514,9.01052463,183.36,183.32,2.7288]
[1734853225720,9.01052463,183.36,183.33,2.7287]
[1734853226317,9.01052463,183.36,183.28,1.6194]
[1734853226524,9.01052463,183.36,183.32,2.7289]
[1734853228028,9.01052463,183.36,183.28,1.6194]
[1734853228224,9.01052463,183.36,183.33,2.7288]
[1734853229420,12.22528328,183.39,183.35,2.7284]
[1734853229632,9.01052463,183.39,183.32,2.96]
[1734853230527,2.7282,183.37,183.33,2.7287]
[1734853234328,2.7282,183.37,183.32,5.6889]
[1734853234532,9.01052463,183.36,183.28,1.6194]
[1734853235128,2.7288,183.33,183.28,4.3488]
[1734853235727,2.7287,183.34,183.3,2.7292]
[1734853235924,9.01052463,183.36,183.3,2.7292]
[1734853236330,2.7286,183.35,183.31,2.729]
[1734853236524,2.96,183.38,183.28,1.6194]
[1734853236929,2.7284,183.36,183.31,2.7291]
[1734853237130,2.7284,183.36,183.28,1.6194]
[1734853237925,5.6881,183.38,183.33,2.7287]
[1734853238332,5.6881,183.38,183.28,1.6194]
[1734853238525,2.7281,183.38,183.34,2.7285]
[1734853239333,2.7279,183.39,183.35,2.7284]
[1734853241460,11.89052463,183.42,183.32,2.88]
[1734853241659,2.7278,183.4,183.36,2.7283]
[1734853242666,2.7281,183.38,183.34,2.7286]